Cogmind - Beta 13 @@@ ROGUE MODE // 2024.04.19 @ 21:58:25 Player: DCS-TF2 Result: Self-destructed Performance ------------- Evolutions (2) 1000 Regions Visited (5) 1000 Robots Destroyed (24) 120 Value Destroyed (506) 506 Prototype IDs (24) 480 Alien Tech Used (0) 0 Bonus (300) 300 TOTAL SCORE: 3406 Bonus ------- Aligned with FarCom 300 Cogmind --------- Core Integrity 423/550 Matter 75/300 Energy 160/160 System Corruption 1% Temperature Hot (285) Movement Rolling (90) Location -8/Materials Parts ------- > --- POWER (1) -------- Light Nuclear Core > --- PROPULSION (3) --- Wheel Compact Wheel > --- UTILITY (4) ------ Small Storage Unit Structural Scanner Modified TNC > --- WEAPON (3) ------- Heavy Particle Cannon Grenade Launcher > --- INVENTORY (8) ---- Ion Engine Light Treads Light Treads Improved Medium Laser Plasma Flamer Peak State ------------ > --- POWER ------------ Light Nuclear Core > --- PROPULSION ------- Wheel Compact Wheel > --- UTILITY ---------- Small Storage Unit Structural Scanner Modified TNC > --- WEAPON ----------- Improved Medium Laser Assault Rifle Plasma Flamer > --- INVENTORY -------- Ion Engine Light Treads Light Treads Grenade Launcher [Rating: 22] Favorites ----------- Power Light Nuclear Core Engine Ion Engine Power Core Light Nuclear Core Propulsion Wheel Wheel Wheel Utility Structural Scanner Device Structural Scanner Storage Small Storage Unit Processor Modified TNC Weapon Assault Rifle Energy Gun Improved Medium Laser Energy Cannon Heavy Particle Cannon Ballistic Gun Assault Rifle Launcher Grenade Launcher Special Weapon Plasma Flamer Build | -11 -10 -10 -10 -9 -8 ------- Run | Yrd Mat Min Exi Min Mat Slots Evolved 4 | . . . . . 4 Power . | . . . . . . Propulsion 1 | . . . . . 1 Utility 2 | . . . . . 2 Weapon 1 | . . . . . 1 Parts Attached 24 | 6 7 2 1 2 6 Power 2 | 1 1 . . . . Engine 1 | 1 . . . . . Core 1 | . 1 . . . . Reactor . | . . . . . . Propulsion 4 | 2 . . . 2 . Treads . | . . . . . . Leg . | . . . . . . Wheel 4 | 2 . . . 2 . Hover . | . . . . . . Flight . | . . . . . . Utility 6 | 1 3 . 1 . 1 Device 3 | . 3 . . . . Storage 2 | 1 . . . . 1 Processor 1 | . . . 1 . . Hackware . | . . . . . . Protection . | . . . . . . Artifact . | . . . . . . Weapon 12 | 2 3 2 . . 5 Energy Gun 2 | 1 . . . . 1 Energy Cannon 1 | . . . . . 1 Ballistic Gun 5 | 1 2 1 . . 1 Ballistic Cannon . | . . . . . . Launcher 2 | . 1 . . . 1 Special Weapon 2 | . . 1 . . 1 Impact Weapon . | . . . . . . Slashing Weapon . | . . . . . . Piercing Weapon . | . . . . . . Special Melee Weapon . | . . . . . . Unidentified Prototypes 1 | . . . . . 1 Parts Lost 1 | . . . . . 1 Power . | . . . . . . Propulsion . | . . . . . . Utility . | . . . . . . Weapon 1 | . . . . . 1 Highest Loss Streak 1 | . . . . . 1 To Critical Strikes . | . . . . . . Average Slot Usage (%) 96 | . 98 100 100 100 75 Engine 2 | . 11 . . . . Core 10 | . 2 14 14 14 9 Wheel 26 | . 28 28 28 28 18 Device 13 | . 13 14 14 14 9 Storage 9 | . 14 14 8 . 7 Processor 5 | . . . 5 14 9 Ballistic Gun 16 | . 23 18 14 14 9 Launcher 2 | . 4 2 . . 3 Special Weapon 7 | . . 7 14 14 2 Naked Turns . | . . . . . . Heaviest Build 22 | 14 16 16 16 11 22 Greatest Support 26 | 26 26 26 26 26 26 Greatest Overweight (x) . | . . . . . . Average Overweight (x) . | . . . . . . Largest Inventory Capacity 8 | 8 8 8 8 5 8 Average Capacity 7 | 6 8 8 6 5 7 Most Carried 7 | 4 7 6 7 5 5 Average Carried 5 | 2 5 5 5 5 4 Final Capacity 8 | 8 8 8 5 5 8 Final Carried 6 | 4 5 6 5 5 5 Class Distribution -------------------- 66% | Mutant 33% | Skirmisher Dominant Class ---------------- Mutant | -10/Materials Mutant | -10/Mines Mutant | -10/Exiles Skirmisher | -9/Mines Skirmisher | -8/Materials Resources | -11 -10 -10 -10 -9 -8 ----------- Run | Yrd Mat Min Exi Min Mat Matter Collected 703 | 263 258 142 . 40 . Remotely . | . . . . . . Salvage Created 504 | 30 232 106 . 78 58 Parts 35 | 1 16 6 . 10 2 Haulers Intercepted . | . . . . . . Recyclers Shooed 1 | . 1 . . . . Parts Field Recycled . | . . . . . . Retrieved Matter . | . . . . . . Parts Self-Destructed . | . . . . . . Prevented . | . . . . . . Kills | -11 -10 -10 -10 -9 -8 ------- Run | Yrd Mat Min Exi Min Mat Combat Hostiles Destroyed 17 | . 5 6 . 4 2 Guns 10 | . 4 2 . 3 1 Cannons 2 | . . 1 . 1 . AOE 5 | . 1 3 . . 1 Classes Destroyed 9 | 1 7 . . . 1 Worker 1 | . 1 . . . . Builder 1 | . 1 . . . . Tunneler 2 | 1 . . . 1 . Recycler 1 | . 1 . . . . Operator 1 | . 1 . . . . Watcher 1 | . 1 . . . . Swarmer 10 | . 3 3 . 4 . Grunt 6 | . 2 3 . . 1 Sentry 1 | . . . . . 1 Best Kill Streak 6 | 1 6 5 . 4 1 Combat Bots Only 5 | . 3 5 . 4 1 Max Kills in Single Turn 2 | 1 1 2 . 2 1 Gunslinging . | . . . . . . Exploded 2 | . 1 2 . . 1 Melee . | . . . . . . Uniques/NPCs Destroyed . | . . . . . . Combat | -11 -10 -10 -10 -9 -8 -------- Run | Yrd Mat Min Exi Min Mat Hostile Shots Fired 83 | . 19 31 . 14 19 Missed 35 | . 5 16 . 3 11 Damage Taken 641 | . 155 152 . 93 241 Core 236 | . 28 56 . 25 127 Absorbed by Shields . | . . . . . . Regen/Repaired (Parts) 21 | . . . . . 21 Core Remaining (%) 78 | 100 . . . 56 . Volleys Fired 63 | 1 24 21 . 6 11 Largest 3 | 2 2 2 . 2 3 Hottest 125 | 70 50 120 . 120 125 Shots Fired 129 | 2 48 37 . 12 30 Gun 91 | 2 41 29 . 6 13 Cannon 6 | . . . . . 6 Launcher 23 | . 7 5 . . 11 Special 9 | . . 3 . 6 . Kinetic 85 | 1 41 29 . 6 8 Thermal 21 | 1 . 3 . 6 11 Explosive 23 | . 7 5 . . 11 Electromagnetic . | . . . . . . Robot Hit Streak 10 | 1 5 4 . 6 10 Robot Miss Streak 4 | . 4 3 . 1 2 Penetration Max . | . . . . . . Secondary Targets 2 | . 1 1 . . . Max Gunslinging Chain 1 | . 1 1 . . . Shots Hit Robots 61 | 1 18 15 . 7 20 Core Hits 43 | 1 16 12 . 5 9 Critical Kills . | . . . . . . Critical Parts Destroyed . | . . . . . . Critical Strikes 3 | . . . . 2 1 Burn 3 | . . . . 2 1 Melee Attacks . | . . . . . . Impact . | . . . . . . Slashing . | . . . . . . Piercing . | . . . . . . Sneak Attacks . | . . . . . . Combat Hostiles . | . . . . . . Follow-up Attacks . | . . . . . . Damage Inflicted 1636 | 13 387 454 . 109 673 Guns 613 | 13 231 164 . 71 134 Cannons 75 | . . . . . 75 Explosions 883 | . 156 263 . . 464 Melee . | . . . . . . Ramming . | . . . . . . Kinetic 532 | . 231 164 . 71 66 Thermal 221 | 13 . 27 . 38 143 Explosive 883 | . 156 263 . . 464 Electromagnetic . | . . . . . . Impact . | . . . . . . Slashing . | . . . . . . Piercing . | . . . . . . Highest Corruption 1 | . . . . . 1 Average Corruption 1 | . . . . . 1 Corruption Purged . | . . . . . . Corruption Blocked . | . . . . . . Effects 1 | . . . . . 1 Matter Fused 1 | . . . . . 1 Overload Shots . | . . . . . . Overflow Damage 12 | . 10 . . . 2 Projectiles 2 | . . . . . 2 Explosions 10 | . 10 . . . . Melee . | . . . . . . Knockbacks . | . . . . . . Impact . | . . . . . . Kinetic . | . . . . . . Secondary . | . . . . . . Self-Inflicted Damage . | . . . . . . Shots . | . . . . . . Rammed . | . . . . . . Targets Rammed . | . . . . . . Kicked . | . . . . . . Crushed . | . . . . . . Highest Temperature 285 | 9 5 132 . 228 285 Average Temperature 83 | 6 3 35 . 91 121 Received Heat Transfer 141 | . 9 60 . . 72 Effects 3 | . . . . . 3 Interference 3 | . . . . . 3 Siege Activations . | . . . . . . Robots Corrupted . | . . . . . . Combat Hostiles . | . . . . . . Parts Fried . | . . . . . . Impact Corruptions . | . . . . . . Robots Melted . | . . . . . . Combat Hostiles . | . . . . . . Parts Melted 1 | . . . . 1 . Heat Transferred 1090 | 37 . 160 . 560 333 Parts Sabotaged . | . . . . . . Parts Stolen . | . . . . . . Parts Stripped . | . . . . . . Power Chain Reactions . | . . . . . . Alert | -11 -10 -10 -10 -9 -8 ------- Run | Yrd Mat Min Exi Min Mat Peak Influence 284 | 5 265 284 . 110 166 Initial 103 | . 3 103 . . 42 Average 133 | . 102 229 . 103 68 Maximum Alert Level 1 | . 1 1 . . . Low Security (%) 67 | 100 75 17 . 100 100 Level 1 32 | . 24 82 . . . Level 2 . | . . . . . . Level 3 . | . . . . . . Level 4 . | . . . . . . Level 5 . | . . . . . . High Security . | . . . . . . Max Security . | . . . . . . Squads Dispatched 3 | . 1 . . . 2 Investigation 1 | . . . . . 1 Extermination . | . . . . . . Reinforcement 2 | . 1 . . . 1 Assault . | . . . . . . Garrison . | . . . . . . Intercept . | . . . . . . Searches Triggered . | . . . . . . Construction Impeded 1 | . . . . . 1 Haulers Reinforced . | . . . . . . Active Scanning Responses . | . . . . . . Cargo Convoy Interrupts . | . . . . . . Stealth | -11 -10 -10 -10 -9 -8 --------- Run | Yrd Mat Min Exi Min Mat Distress Signals 1 | . 1 . . . . Communications Jammed . | . . . . . . Distress Signals . | . . . . . . Times Spotted 24 | . 9 7 . 4 4 Peak Tracking Total 4 | . 3 3 . 4 2 Tactical Retreats 2 | . 1 1 . . . Traps | -11 -10 -10 -10 -9 -8 ------- Run | Yrd Mat Min Exi Min Mat Traps Triggered 2 | . 2 . . . . Indirectly . | . . . . . . Trap Hack Attempts . | . . . . . . Triggered . | . . . . . . Disarmed . | . . . . . . Reprogrammed . | . . . . . . Reused . | . . . . . . Traps Extracted . | . . . . . . Installed . | . . . . . . Triggered . | . . . . . . Machines | -11 -10 -10 -10 -9 -8 ---------- Run | Yrd Mat Min Exi Min Mat Machines Disabled 6 | . 3 1 . . 2 Max in Single Turn 3 | . 3 1 . . 1 Machines Repaired . | . . . . . . Machines Dismantled . | . . . . . . Machines Sabotaged . | . . . . . . Overloaded Fab Kills . | . . . . . . Hacking | -11 -10 -10 -10 -9 -8 --------- Run | Yrd Mat Min Exi Min Mat Machines Accessed 3 | . . . 1 . 2 Terminals . | . . . . . . Fabricators . | . . . . . . Repair Stations 1 | . . . . . 1 Recycling Units . | . . . . . . Scanalyzers 1 | . . . . . 1 Garrison Access . | . . . . . . Total Hacks 6 | . . . 1 . 5 Successful 5 | . . . 1 . 4 Failed 1 | . . . . . 1 Catastrophic . | . . . . . . Database Lockouts . | . . . . . . Manual 1 | . . . 1 . . Terminals . | . . . . . . Fabricators . | . . . . . . Repair Stations 3 | . . . . . 3 Recycling Units . | . . . . . . Scanalyzers 2 | . . . . . 2 Garrison Access . | . . . . . . Terminal Hacks 1 | . . . 1 . . Derelict Proto ID Bank 1 | . . . 1 . . Fabricator Hacks . | . . . . . . Repair Station Hacks 3 | . . . . . 3 Scan Component 2 | . . . . . 2 Repair 1 | . . . . . 1 Recycling Unit Hacks . | . . . . . . Scanalyzer 1 | . . . . . 1 Insert Component 1 | . . . . . 1 Garrison Access Hacks . | . . . . . . Unauthorized Hacks . | . . . . . . Terminals . | . . . . . . Fabricators . | . . . . . . Repair Stations . | . . . . . . Recycling Units . | . . . . . . Scanalyzers . | . . . . . . Garrison Access . | . . . . . . Data Cores Recovered . | . . . . . . Used . | . . . . . . Hacking Detections 2 | . . . . . 2 Full Trace Events 1 | . . . . . 1 Feedback Events 1 | . . . . . 1 Corruption 1 | . . . . . 1 Feedback Blocked . | . . . . . . Robot Schematics Acquired . | . . . . . . Robots Built . | . . . . . . Authchips . | . . . . . . Time . | . . . . . . Total Robot Build Rating . | . . . . . . Part Schematics Acquired . | . . . . . . Parts Built . | . . . . . . Authchips . | . . . . . . Time . | . . . . . . Total Part Build Rating . | . . . . . . Parts Repaired 1 | . . . . . 1 Time 50 | . . . . . 50 Parts Recycled . | . . . . . . Recycled Matter . | . . . . . . Retrieved Matter . | . . . . . . Retrieved Components . | . . . . . . Parts Scanalyzed 1 | . . . . . 1 Part Schematics Acquired . | . . . . . . Parts Damaged 1 | . . . . . 1 Bothacking | -11 -10 -10 -10 -9 -8 ------------ Run | Yrd Mat Min Exi Min Mat Used RIF Installer . | . . . . . . Robots Hacked . | . . . . . . Non-combat . | . . . . . . Combat . | . . . . . . Robot Hacks Applied . | . . . . . . Relay Couplers Released . | . . . . . . Fabnet Peak Effective % . | . . . . . . Robots Rewired . | . . . . . . Allies Hacked . | . . . . . . Hacks Repelled . | . . . . . . Allies | -11 -10 -10 -10 -9 -8 -------- Run | Yrd Mat Min Exi Min Mat Total Allies 2 | . . 2 . . . Largest Group 2 | . . 2 . . . Highest-Rated Group 42 | . . 42 . . . Highest-Rated Ally 31 | . . 31 . . . Total Orders . | . . . . . . Ally Attacks 4 | . . 4 . . . Total Damage 85 | . . 85 . . . Kills . | . . . . . . Allies Corrupted . | . . . . . . Allies Melted . | . . . . . . Intel | -11 -10 -10 -10 -9 -8 ------- Run | Yrd Mat Min Exi Min Mat Robot Analysis Total . | . . . . . . Derelict Logs Recovered 2 | . . 2 . . . Drone Launches . | . . . . . . Drone Recoveries . | . . . . . . Exploration | -11 -10 -10 -10 -9 -8 ------------- Run | Yrd Mat Min Exi Min Mat Turns Passed 1368 | 59 284 376 198 286 165 Spaces Moved 1194 | 49 218 345 216 291 75 Core 11 | 11 . . . . . Treads . | . . . . . . Legs . | . . . . . . Wheels 1183 | 38 218 345 216 291 75 Hover . | . . . . . . Flight . | . . . . . . Fastest Speed 50 | 50 90 90 90 90 90 Average Speed 89 | 81 90 90 90 90 90 Slowest Speed 90 | 90 90 90 90 90 90 Overloaded Moves . | . . . . . . Propulsion Burnouts . | . . . . . . Robots Hopped . | . . . . . . Cave-ins Triggered . | . . . . . . Exploration Rate (%) 39 | 4 46 73 61 46 7 Regions Visited 5 Branch Regions 3 Pre-discovered Areas 1 | . . 1 . . . Known Exits Taken . | . . . . . . Unknown Exits Taken 5 | 1 1 1 1 1 . Scrap Searched 2 | . . 1 . 1 . Spaces Dug . | . . . . . . Terrain Destroyed 79 | . 25 22 . . 32 Melee . | . . . . . . Projectile . | . . . . . . AOE 79 | . 25 22 . . 32 Terrain Rammed . | . . . . . . Walls Destroyed . | . . . . . . Machines Disabled . | . . . . . . Actions | -11 -10 -10 -10 -9 -8 --------- Run | Yrd Mat Min Exi Min Mat Total 1362 | 66 259 370 219 300 148 Wait 53 | 1 . 2 . . 50 Move 1189 | 48 217 344 215 290 75 Hop . | . . . . . . Pick Up 24 | 10 8 1 1 . 4 Fast Attach . | . . . . . . Attach 17 | 6 7 . . . 4 Detach 1 | . . . . . 1 Swap 7 | . . 2 1 2 2 Drop 8 | . 3 . 2 2 1 Fire 63 | 1 24 21 . 6 11 Melee . | . . . . . . Ram . | . . . . . . Kick . | . . . . . . Crush . | . . . . . . Escape Stasis . | . . . . . . Rewire . | . . . . . . Trap . | . . . . . . Miscellaneous . | . . . . . . Route ------- -11/Scrapyard -10/Materials (discovered 3 exits: [*Mat] / [*Min] / [Sub]) -10/Mines (discovered 2 exits: [*Mat] / *Exi) -10/Exiles (discovered 2 exits: [*Min x2]) -9/Mines -8/Materials History --------- Turn | Location | Event 10 | -11/Scrapyard | Discovered new exit (range 16) 60 | -11/Scrapyard | Entered Materials 244 | -10/Materials | Discovered new exit (range 15) 314 | -10/Materials | Build established: Mutant 317 | -10/Materials | Discovered new exit (range 15) 325 | -10/Materials | Discovered new exit (range 16) 344 | -10/Materials | Entered Mines 524 | -10/Mines | A weapon hastily lodged in a ceiling crevice suddenly fell to the ground 542 | -10/Mines | Learned Materials trap positions 589 | -10/Mines | Learned location of Zion (-7) 598 | -10/Mines | Discovered new exit (range 4) 642 | -10/Mines | Excavation squad dispatched 642 | -10/Mines | A large section of the Mines collapsed 716 | -10/Mines | Deemed a non-threat by the Exiles lab entrance 716 | -10/Mines | Discovered new exit (range 5) 720 | -10/Mines | Entered Exiles 735 | -10/Exiles | Discovered new exit (range 15) 745 | -10/Exiles | Met 8R-AWN 758 | -10/Exiles | Met EX-HEX 788 | -10/Exiles | Met EX-BIN 799 | -10/Exiles | Aligned with FarCom system 800 | -10/Exiles | Given EX-Vault access code 822 | -10/Exiles | Opened EX-Vault 829 | -10/Exiles | Found Modified TNC 851 | -10/Exiles | Warned to stay clear of 0b10 Research branches 877 | -10/Exiles | Met EX-DEC 908 | -10/Exiles | Discovered new exit (range 14) 918 | -10/Exiles | Left Exiles lab with Modified TNC 918 | -10/Exiles | Entered Mines 953 | -9/Mines | Discovered new exit (range 5) 1204 | -9/Mines | Entered Materials 1204 | -8/Materials | Evolved 4 slots: Propulsion x1, Utility x2, Weapon x1 1205 | -8/Materials | Loaded intel: 30 trap records 1246 | -8/Materials | Build established: Skirmisher 1278 | -8/Materials | Repaired Plasma Flamer 1369 | -8/Materials | Self-destructed Last Messages --------------- Assault Rifle destroyed. U-05 Engineer lays Concrete. The unstable cave ceiling collapses. U-05 Engineer lays Concrete. Fusion Modulator explodes. Backup Propulsion I tumbles out of repair station. Backup Propulsion I tumbles out of repair station. Backup Plating I tumbles out of repair station. Backup Laser I tumbles out of repair station. Backup Plating I tumbles out of repair station. U-05 Engineer lays Concrete. Destroyed Lgt. Nuclear Core. ALERT: Construction progress impeded, dispatching reinforcements to local area. Overheating: System interference. Structural Scanner temporarily disabled. Modified TNC temporarily disabled. Structural Scanner temporarily disabled. Map ----- +----------------------------------------------------+ | ???????????????????????????????????????????^?????? | | ?????????????????????????????????????????????????? | | ?????????????????????????????????????????????????? | | ??????????????????????????????????????????^??????? | | ?????????????????????????????????????????????????? | | ?????????????????????????????????????????????????? | | ?????????????????????????????????????????????????? | | ?????????????????????????????????????????????????? | | ?????????????????????????????????????????????????? | | ?????????????????????????????????????????????????? | | ?????????????????????????????????????????????????? | | ????????????????????????????????????????????^????? | | ?????????????????????????????????????????????????? | | ?????????????????????????????????????????????????? | | ?????????????????????????????????????????????????? | | ???????????## ???????????????????????????????????? | | ???????????## ???????????????????????????????????? | | ???????????## ???????????????????????????????????? | | ???????????## ???????????????????????????????????? | | ???????????## ###############????????????????????? | | ???????????## #################??????????????????? | | ???????????## ## #####?????????????????? | | ???????????## ;;;;;;;;;###?????????????????? | | ???????????## ; ##?????????????????? | | ???????????###### ; ##?????????????????? | | ???????????###### ; @ ##?????????????????? | | ???????????????## ; ##?????????????????? | | ???????????????## ; ! ###????????????????? | | ???????????????## ; [ " ##????????????????? | | ???????????????## ; ! " ##????????????????? | | ???????????????## ; #####??????g??????? | | ???????????????## ##;; g ###?????????????? | | ???????????????## ## # ##?????????????? | | ???????????????## ## # ##?????????????? | | ???????????????## ## " ##?????????????? | | ???????????????## ##### ##?????????????? | | ???????????????## ##### " ##?????????????? | | ???????????????## ##?## S"" "" ##?????????????? | | ???????????????## ##?## "" r ##?????????????? | | ???????????????## ##?## ##?????????????? | | ???????????????## ???## # ####?????????????? | | ???????????????## ???## #] ##?????????????? | | ???????????????## ?? ##??????????????? | | ???????????????????? ## ??????????????? | | ??????????????????? ## ??????????????? | | ???????????????????####### [ ## ??????????????? | | ???????????????????####### ## ## ??????????????? | | ????????????????????????####### ## ??????????????? | | ????????????????????????####### ##???????????????? | | ??????????????????????????????? ##???????????????? | +----------------------------------------------------+ Best States ------------- Heat Dissipation 31 Energy Generation 14 Energy Capacity 250 Matter Stores 300 Matter Capacity 300 Sight Range 16 Terrain Scan Range 16 Terrain Scan Density 10 Evasion (%) 50 Item Schematics ----------------- None Robot Schematics ------------------ None Fabricated ------------ Nothing Alien Tech Used ----------------- None Achievements -------------- None Challenges ------------ None Game ------ Seed SigixDamperMaul Manual? 0 Play Time 00:19:24 Cumulative 13.1 hours Start 2024.04.19 @ 21:37:22 End 2024.04.19 @ 21:58:25 Sessions 1 Manual Loads 0 Difficulty Rogue Special Mode None Game No. 15 Rogue 15 Adventurer 0 Explorer 0 Win Type - Total 0 Types 0/0/0/0/0/0/0/0/0 Lore% 11 Gallery% 13 Achievement% 100 Wizard Run 0 Options --------- Layout 1 ASCII 0 Keyboard 0 Movement Numpad Keybinds 0 Fullscreen 1 Font 24/Smallcaps Map View 50x35 Zoom Use 0% Tactical HUD 0 Map Filters NONE Filters NONE Steam 1 RUN: 31285cef-d413-4738-8c5a-5cf92eaf77e5